{"text_format":"1","workbook":"xlsx","n_sheets":8,"sheets":["admin","الوارد","الصادر","طلب شراء  مدينتى","طلب شراء  العاصمه الادرايه","انشائى اسفل الدكه","انشائي اعلى الدكه","Sheet3"],"not_rendered":{"charts":0,"images":2,"macros":1,"external_links":0,"defined_names":6,"comments":0,"pivot_tables":0},"unopened":[],"bounds":{"document_bytes":16777216,"sheet_cells":100000,"rows_first":2000,"rows_last":500,"rows_between":2000,"halvings":0,"cell_chars":16384,"cell_head_chars":4096},"cells_cut":0,"cells_raw":0,"read":"whole","date_system":"1900"}

{"sheet":"admin","index":0,"n_rows":3,"n_cols":3,"rows_kept":3,"cut":false,"hidden":false,"merged":[]}
["اسم المستخدم","كلمة المرور","2018-09-06T08:52:38"]
["admin","123"]
["ragab",25]

{"sheet":"الوارد","index":1,"n_rows":3,"n_cols":6,"rows_kept":3,"cut":false,"hidden":false,"merged":[]}
[]
[]
["م","الموضوع","وارد من","التاريخ","مسار الخطاب","فتح الخطاب"]

{"sheet":"الصادر","index":2,"n_rows":20,"n_cols":6,"rows_kept":20,"cut":false,"hidden":false,"merged":[]}
[]
[]
["م","الموضوع","صادر الى","التاريخ","مسار الخطاب","فتح الخطاب"]
["1",null,null,null,null,{"$f":"HYPERLINK(Table2[[#This Row],[مسار الخطاب]],\"go\")","v":"go"}]
["2",null,null,null,null,{"$f":"HYPERLINK(Table2[[#This Row],[مسار الخطاب]],\"go\")","v":"go"}]
["3",null,null,null,null,{"$f":"HYPERLINK(Table2[[#This Row],[مسار الخطاب]],\"go\")","v":"go"}]
["4",null,null,null,null,{"$f":"HYPERLINK(Table2[[#This Row],[مسار الخطاب]],\"go\")","v":"go"}]
["5",null,null,null,null,{"$f":"HYPERLINK(Table2[[#This Row],[مسار الخطاب]],\"go\")","v":"go"}]
["6",null,null,null,null,{"$f":"HYPERLINK(Table2[[#This Row],[مسار الخطاب]],\"go\")","v":"go"}]
["7",null,null,null,null,{"$f":"HYPERLINK(Table2[[#This Row],[مسار الخطاب]],\"go\")","v":"go"}]
["8",null,null,null,null,{"$f":"HYPERLINK(Table2[[#This Row],[مسار الخطاب]],\"go\")","v":"go"}]
["9",null,null,null,null,{"$f":"HYPERLINK(Table2[[#This Row],[مسار الخطاب]],\"go\")","v":"go"}]
["10",null,null,null,null,{"$f":"HYPERLINK(Table2[[#This Row],[مسار الخطاب]],\"go\")","v":"go"}]
["11",null,null,null,null,{"$f":"HYPERLINK(Table2[[#This Row],[مسار الخطاب]],\"go\")","v":"go"}]
["12",null,null,null,null,{"$f":"HYPERLINK(Table2[[#This Row],[مسار الخطاب]],\"go\")","v":"go"}]
["13",null,null,null,null,{"$f":"HYPERLINK(Table2[[#This Row],[مسار الخطاب]],\"go\")","v":"go"}]
["14",null,null,null,null,{"$f":"HYPERLINK(Table2[[#This Row],[مسار الخطاب]],\"go\")","v":"go"}]
["15",null,null,null,null,{"$f":"HYPERLINK(Table2[[#This Row],[مسار الخطاب]],\"go\")","v":"go"}]
["16",null,null,null,null,{"$f":"HYPERLINK(Table2[[#This Row],[مسار الخطاب]],\"go\")","v":"go"}]
["17",null,null,null,null,{"$f":"HYPERLINK(Table2[[#This Row],[مسار الخطاب]],\"go\")","v":"go"}]

{"sheet":"طلب شراء  مدينتى","index":3,"n_rows":38,"n_cols":6,"rows_kept":38,"cut":false,"hidden":false,"merged":[[6,2,6,3],[0,0,0,3],[1,0,1,3],[2,0,2,3],[3,0,3,3],[5,0,5,5],[37,0,37,2],[8,0,9,0],[8,1,8,2],[8,3,9,3],[8,4,9,4],[32,1,32,2],[32,4,32,5],[33,1,33,2],[33,4,33,5],[36,0,36,2],[8,5,9,5],[31,1,31,2],[31,4,31,5]]}
[]
["         شركة الأسكندرية للإنشاءات"]
["          مشروع مدينتى قطاع ( 7 )"]
["      عمارات مجموعة ( 102 ) B 10"]
[]
["        طلب شراء إحتياجات ( مشروع مدينتى )"]
["التاريخ :",null,{"$f":"TODAY()","v":"2018-12-27"}]
[]
["م","كود الصنف",null,"اسم الصنف","الوحدة","الكمية المطلوب توريدها"]
[null,"كود ","مجموعة"]
[]
[]
[]
[]
[]
[]
[]
[]
[]
[]
[]
[]
[]
[]
[]
[]
[]
[]
[]
[]
[]
[null,"امين المخزن",null,"                 المدير المالى والادارى                    نائب مدير عام تنفيذ القطاع"," مدير عام تنفيذ القطاع"]
["الاســم :","...................",null,"            أ / محمد عبدالرحمن                           م / مهدي عبدالغني","م / حسني المولد"]
["التوقيع :","...................",null,"             ...................                     ......................","..................."]
[]
[null,"مدير ادارة المخازن :"]
["أ / طارق انور"]
["................."]

{"sheet":"طلب شراء  العاصمه الادرايه","index":4,"n_rows":34,"n_cols":6,"rows_kept":34,"cut":false,"hidden":false,"merged":[[6,2,6,3],[0,0,0,3],[1,0,1,3],[2,0,2,3],[3,0,3,3],[5,0,5,5],[33,0,33,2],[8,0,9,0],[8,1,8,2],[8,3,9,3],[8,4,9,4],[28,1,28,2],[28,4,28,5],[29,1,29,2],[29,4,29,5],[32,0,32,2],[8,5,9,5],[27,1,27,2],[27,4,27,5]]}
[]
["         شركة الأسكندرية للإنشاءات"]
["          مشروع مدينتى قطاع ( 7 )"]
["      عمارات مجموعة ( 102 ) B 10"]
[]
["        طلب شراء إحتياجات ( مشروع العاصمة )"]
["التاريخ :  ",null,{"$f":"TODAY()","v":"2018-12-27"}]
[]
["م","كود الصنف",null,"اسم الصنف","الوحدة","الكمية المطلوب توريدها"]
[null,"كود ","مجموعة"]
[]
[]
[null,null,null,null," "]
[]
[]
[]
[]
[]
[]
[]
[]
[]
[]
[]
[]
[]
[]
[null,"امين المخزن",null,"                 المدير المالى والادارى                    نائب مدير عام تنفيذ القطاع"," مدير عام تنفيذ القطاع"]
["الاســم :","...................",null,"            أ / محمد عبدالرحمن                           م / مهدي عبدالغني","م / حسني المولد"]
["التوقيع :","...................",null,"             ...................                     ......................","..................."]
[]
[null,"مدير ادارة المخازن :"]
["أ / طارق انور"]
["................."]

{"sheet":"انشائى اسفل الدكه","index":5,"n_rows":95,"n_cols":6,"rows_kept":95,"cut":false,"hidden":false,"merged":[[3,0,18,0],[3,1,11,1],[12,1,18,1],[19,0,38,0],[19,1,28,1],[29,1,38,1],[39,0,58,0],[59,0,75,0],[76,0,94,0],[69,1,75,1],[76,1,86,1],[87,1,94,1],[39,1,48,1],[49,1,58,1],[59,1,68,1]]}
[]
[]
["النموذج","الحالة ","اسم اللوحة","Serial number","مسار اللوحه","فتح اللوحه"]
["01","عمارتين متصلتين ","حدود الحفر","ACC-MD-B10-ST-01-01","D:\\برنامج الارشيف\\اللوحات\\انشائي\\اسفل الدكة\\نموذج01\\عمارتين متصلتين\\حدود الحفر.pdf",{"$f":"HYPERLINK((E4),\"go\")","v":"go"}]
[null,null,"قواعد عادية ","ACC-MD-B10-ST-01-02","D:\\برنامج الارشيف\\اللوحات\\انشائي\\اسفل الدكة\\نموذج01\\عمارتين متصلتين\\قواعد عادية  .pdf",{"$f":"HYPERLINK((E5),\"go\")","v":"go"}]
[null,null,"قواعد مسلحة","ACC-MD-B10-ST-01-03","D:\\برنامج الارشيف\\اللوحات\\انشائي\\اسفل الدكة\\نموذج01\\عمارتين متصلتين\\قواعد مسلحة  .pdf","go"]
[null,null,"اضافي قواعد مسلحة ","ACC-MD-B10-ST-01-04","D:\\برنامج الارشيف\\اللوحات\\انشائي\\اسفل الدكة\\نموذج01\\عمارتين متصلتين\\اضافي قواعد مسلحة .pdf","go"]
[null,null,"تفاصيل قواعد مسلحة ","ACC-MD-B10-ST-01-05","D:\\برنامج الارشيف\\اللوحات\\انشائي\\اسفل الدكة\\نموذج01\\عمارتين متصلتين\\تفاصيل قواعد مسلحة  .pdf","go"]
[null,null,"محاور واعمدة","ACC-MD-B10-ST-01-06","D:\\برنامج الارشيف\\اللوحات\\انشائي\\اسفل الدكة\\نموذج01\\عمارتين متصلتين\\تفاصيل محاور واعمدة .pdf","go"]
[null,null,"تفاصيل محاور واعمدة","ACC-MD-B10-ST-01-07","D:\\برنامج الارشيف\\اللوحات\\انشائي\\اسفل الدكة\\نموذج01\\عمارتين متصلتين\\تفاصيل محاور واعمدة .pdf","go"]
[null,null,"تفاصيل سملات علوية ","ACC-MD-B10-ST-01-09","D:\\برنامج الارشيف\\اللوحات\\انشائي\\اسفل الدكة\\نموذج01\\عمارتين متصلتين\\تفاصيل سملات علوية .pdf","go"]
[null,null,"قصية الردم","ACC-MD-B10-ST-01-10","D:\\برنامج الارشيف\\اللوحات\\انشائي\\اسفل الدكة\\نموذج01\\عمارتين متصلتين\\قصية الردم.pdf","go"]
[null,"ثلاث عمارات متصلة","حدود الحفر",null,"D:\\برنامج الارشيف\\اللوحات\\انشائي\\اسفل الدكة\\نموذج01\\ثلاث عمارات متصلة\\حدود الحفر.pdf","go"]
[null,null,"قواعد عادية ",null,"D:\\برنامج الارشيف\\اللوحات\\انشائي\\اسفل الدكة\\نموذج01\\ثلاث عمارات متصلة\\القواعد العادية.pdf","go"]
[null,null,"قواعد مسلحة",null,"D:\\برنامج الارشيف\\اللوحات\\انشائي\\اسفل الدكة\\نموذج01\\ثلاث عمارات متصلة\\القواعد المسلحة.pdf","go"]
[null,null,"اضافي قواعد مسلحة ",null,"D:\\برنامج الارشيف\\اللوحات\\انشائي\\اسفل الدكة\\نموذج01\\ثلاث عمارات متصلة\\اضافي قواعد مسلحة.pdf","go"]
[null,null,"سملات علوية ",null,"D:\\برنامج الارشيف\\اللوحات\\انشائي\\اسفل الدكة\\نموذج01\\ثلاث عمارات متصلة\\السملات العلوية للقواعد الشريطية.pdf","go"]
[null,null,"تفاصيل سملات علوية ",null,"D:\\برنامج الارشيف\\اللوحات\\انشائي\\اسفل الدكة\\نموذج01\\ثلاث عمارات متصلة\\تفاصيل السملات العلوية.pdf","go"]
[null,null,"قصية الردم",null,"D:\\برنامج الارشيف\\اللوحات\\انشائي\\اسفل الدكة\\نموذج01\\ثلاث عمارات متصلة\\مباني قصية الردم.pdf","go"]
["04","عمارتين متصلتين 2 تراس","حدود الحفر","ACC-MD-B10-ST-04-01","D:\\برنامج الارشيف\\اللوحات\\انشائي\\اسفل الدكة\\نموذج 04\\حالة 2 تراس\\حدود الحفر.pdf","go"]
[null,null,"قواعد عادية","ACC-MD-B10-ST-04-02","D:\\برنامج الارشيف\\اللوحات\\انشائي\\اسفل الدكة\\نموذج 04\\حالة 2 تراس\\قواعد عادية.pdf","go"]
[null,null,"قواعد مسلحة","ACC-MD-B10-ST-04-03","D:\\برنامج الارشيف\\اللوحات\\انشائي\\اسفل الدكة\\نموذج 04\\حالة 2 تراس\\قواعد مسلحة.pdf","go"]
[null,null,"التسليح الاضافي للقواعد المسلحة ","ACC-MD-B10-ST-04-04","D:\\برنامج الارشيف\\اللوحات\\انشائي\\اسفل الدكة\\نموذج 04\\حالة 2 تراس\\تسليح اضافي للقواعد المسلحة.pdf","go"]
[null,null,"تفاصيل قواعد مسلحة","ACC-MD-B10-ST-04-05","D:\\برنامج الارشيف\\اللوحات\\انشائي\\اسفل الدكة\\نموذج 04\\حالة 2 تراس\\تفاصيل قواعد مسلحة.pdf","go"]
[null,null,"محاور واعمدة","ACC-MD-B10-ST-04-06","D:\\برنامج الارشيف\\اللوحات\\انشائي\\اسفل الدكة\\نموذج 04\\حالة 2 تراس\\محاور واعمدة.pdf","go"]
[null,null,"تفاصيل محاور واعمدة","ACC-MD-B10-ST-04-07","D:\\برنامج الارشيف\\اللوحات\\انشائي\\اسفل الدكة\\نموذج 04\\حالة 2 تراس\\تفاصيل محاور واعمدة.pdf","go"]
[null,null,"سملات علوية ","ACC-MD-B10-ST-04-08","D:\\برنامج الارشيف\\اللوحات\\انشائي\\اسفل الدكة\\نموذج 04\\حالة 2 تراس\\سملات علوية.pdf","go"]
[null,null,"تفاصيل سملات علوية ","ACC-MD-B10-ST-04-09","D:\\برنامج الارشيف\\اللوحات\\انشائي\\اسفل الدكة\\نموذج 04\\حالة 2 تراس\\تفاصيل سملات علوية .pdf","go"]
[null,null,"مباني قصية الردم","ACC-MD-B10-ST-04-10","D:\\برنامج الارشيف\\اللوحات\\انشائي\\اسفل الدكة\\نموذج 04\\حالة 2 تراس\\مباني قصية الردم.pdf","go"]
[null,"عمارتين متصلتين 4 تراس","حدود الحفر","ACC-MD-B10-ST-04-01","D:\\برنامج الارشيف\\اللوحات\\انشائي\\اسفل الدكة\\نموذج 04\\حالة 4 تراس\\حدود الحفر.pdf","go"]
[null,null,"قواعد عادية","ACC-MD-B10-ST-04-02","D:\\برنامج الارشيف\\اللوحات\\انشائي\\اسفل الدكة\\نموذج 04\\حالة 4 تراس\\قواعد عادية.pdf","go"]
[null,null,"قواعد مسلحة","ACC-MD-B10-ST-04-03","D:\\برنامج الارشيف\\اللوحات\\انشائي\\اسفل الدكة\\نموذج 04\\حالة 4 تراس\\قواعد مسلحة.pdf","go"]
[null,null,"التسليح الاضافي للقواعد المسلحة ","ACC-MD-B10-ST-04-04","D:\\برنامج الارشيف\\اللوحات\\انشائي\\اسفل الدكة\\نموذج 04\\حالة 4 تراس\\تسليح اضافي قواعد مسلحة.pdf","go"]
[null,null,"تفاصيل قواعد مسلحة","ACC-MD-B10-ST-04-05","D:\\برنامج الارشيف\\اللوحات\\انشائي\\اسفل الدكة\\نموذج 04\\حالة 4 تراس\\تفاصيل قواعد مسلحة.pdf","go"]
[null,null,"محاور واعمدة","ACC-MD-B10-ST-04-06","D:\\برنامج الارشيف\\اللوحات\\انشائي\\اسفل الدكة\\نموذج 04\\حالة 4 تراس\\محاور واعمدة.pdf","go"]
[null,null,"تفاصيل محاور واعمدة","ACC-MD-B10-ST-04-07","D:\\برنامج الارشيف\\اللوحات\\انشائي\\اسفل الدكة\\نموذج 04\\حالة 4 تراس\\تفاصيل محاور واعمدة.pdf","go"]
[null,null,"سملات علوية ","ACC-MD-B10-ST-04-08","D:\\برنامج الارشيف\\اللوحات\\انشائي\\اسفل الدكة\\نموذج 04\\حالة 4 تراس\\سملات علوية.pdf","go"]
[null,null,"تفاصيل سملات علوية ","ACC-MD-B10-ST-04-09","D:\\برنامج الارشيف\\اللوحات\\انشائي\\اسفل الدكة\\نموذج 04\\حالة 4 تراس\\تفاصيل سملات علوية.pdf","go"]
[null,null,"مباني قصية الردم","ACC-MD-B10-ST-04-10","D:\\برنامج الارشيف\\اللوحات\\انشائي\\اسفل الدكة\\نموذج 04\\حالة 4 تراس\\مباني قصية الردم.pdf","go"]
["06","عمارتين متصلتين 2 تراس","حدود الحفر","ACC-MD-B10-ST-06-01","D:\\برنامج الارشيف\\اللوحات\\انشائي\\اسفل الدكة\\نموذج 06\\حالة 2 تراس\\حدود الحفر.pdf","go"]
[null,null,"قواعد عادية","ACC-MD-B10-ST-06-02","D:\\برنامج الارشيف\\اللوحات\\انشائي\\اسفل الدكة\\نموذج 06\\حالة 2 تراس\\قواعد عادية.pdf","go"]
[null,null,"قواعد مسلحة","ACC-MD-B10-ST-06-03","D:\\برنامج الارشيف\\اللوحات\\انشائي\\اسفل الدكة\\نموذج 06\\حالة 2 تراس\\قواعد مسلحة.pdf","go"]
[null,null,"التسليح الاضافي للقواعد المسلحة ","ACC-MD-B10-ST-06-04","D:\\برنامج الارشيف\\اللوحات\\انشائي\\اسفل الدكة\\نموذج 06\\حالة 2 تراس\\تسليح اضافي قواعد مسلحة.pdf","go"]
[null,null,"تفاصيل قواعد مسلحة","ACC-MD-B10-ST-06-05","D:\\برنامج الارشيف\\اللوحات\\انشائي\\اسفل الدكة\\نموذج 06\\حالة 2 تراس\\تفاصيل قواعد مسلحة.pdf","go"]
[null,null,"محاور واعمدة","ACC-MD-B10-ST-06-06","D:\\برنامج الارشيف\\اللوحات\\انشائي\\اسفل الدكة\\نموذج 06\\حالة 2 تراس\\محاور واعمدة.pdf","go"]
[null,null,"تفاصيل محاور واعمدة","ACC-MD-B10-ST-06-06","D:\\برنامج الارشيف\\اللوحات\\انشائي\\اسفل الدكة\\نموذج 06\\حالة 2 تراس\\تفاصيل محاور واعمدة.pdf","go"]
[null,null,"سملات علوية ","ACC-MD-B10-ST-06-08","D:\\برنامج الارشيف\\اللوحات\\انشائي\\اسفل الدكة\\نموذج 06\\حالة 2 تراس\\سملات علوية.pdf","go"]
[null,null,"تفاصيل سملات علوية ","ACC-MD-B10-ST-06-09","D:\\برنامج الارشيف\\اللوحات\\انشائي\\اسفل الدكة\\نموذج 06\\حالة 2 تراس\\تفاصيل سملات علوية.pdf","go"]
[null,null,"مباني قصية الردم","ACC-MD-B10-ST-06-10","D:\\برنامج الارشيف\\اللوحات\\انشائي\\اسفل الدكة\\نموذج 06\\حالة 2 تراس\\قصية الردم .pdf","go"]
[null,"عمارتين متصلتين 4 تراس","حدود الحفر والاحلال","ACC-MD-B10-ST-06-01","D:\\برنامج الارشيف\\اللوحات\\انشائي\\اسفل الدكة\\نموذج 06\\حالة 4 تراس\\حدود الحفر والاحلال.pdf","go"]
[null,null,"قواعد عادية","ACC-MD-B10-ST-06-02","D:\\برنامج الارشيف\\اللوحات\\انشائي\\اسفل الدكة\\نموذج 06\\حالة 4 تراس\\قواعد عادية.pdf","go"]
[null,null,"قواعد مسلحة","ACC-MD-B10-ST-06-03","D:\\برنامج الارشيف\\اللوحات\\انشائي\\اسفل الدكة\\نموذج 06\\حالة 4 تراس\\قواعد مسلحة.pdf","go"]
[null,null,"التسليح الاضافي للقواعد المسلحة ","ACC-MD-B10-ST-06-04","D:\\برنامج الارشيف\\اللوحات\\انشائي\\اسفل الدكة\\نموذج 06\\حالة 4 تراس\\تسليح اضافي قواعد مسلحة.pdf","go"]
[null,null,"تفاصيل قواعد مسلحة","ACC-MD-B10-ST-06-05","D:\\برنامج الارشيف\\اللوحات\\انشائي\\اسفل الدكة\\نموذج 06\\حالة 4 تراس\\تفاصيل قواعد مسلحة.pdf","go"]
[null,null,"محاور واعمدة","ACC-MD-B10-ST-06-06","D:\\برنامج الارشيف\\اللوحات\\انشائي\\اسفل الدكة\\نموذج 06\\حالة 4 تراس\\محاور واعمدة.pdf","go"]
[null,null,"تفاصيل محاور واعمدة","ACC-MD-B10-ST-06-06","D:\\برنامج الارشيف\\اللوحات\\انشائي\\اسفل الدكة\\نموذج 06\\حالة 4 تراس\\تفاصيل محاور واعمدة.pdf","go"]
[null,null,"سملات علوية ","ACC-MD-B10-ST-06-08","D:\\برنامج الارشيف\\اللوحات\\انشائي\\اسفل الدكة\\نموذج 06\\حالة 4 تراس\\سملات علوية.pdf","go"]
[null,null,"تفاصيل سملات علوية ","ACC-MD-B10-ST-06-09","D:\\برنامج الارشيف\\اللوحات\\انشائي\\اسفل الدكة\\نموذج 06\\حالة 4 تراس\\تفاصيل سملات علوية.pdf","go"]
[null,null,"مباني قصية الردم","ACC-MD-B10-ST-06-10","D:\\برنامج الارشيف\\اللوحات\\انشائي\\اسفل الدكة\\نموذج 06\\حالة 4 تراس\\قصية الردم.pdf","go"]
["07","ثلاث عمارات متصلة","حدود الحفر للقواعد","ACC-MD-B10-ST-07-01","D:\\برنامج الارشيف\\اللوحات\\انشائي\\اسفل الدكة\\نموذج07\\حالة ثلاث عمارات متصلة\\حدود الحفر للقواعد.pdf","go"]
[null,null,"قواعد عادية","ACC-MD-B10-ST-07-02","D:\\برنامج الارشيف\\اللوحات\\انشائي\\اسفل الدكة\\نموذج07\\حالة ثلاث عمارات متصلة\\قواعد عادية .pdf","go"]
[null,null,"قواعد مسلحة","ACC-MD-B10-ST-07-03","D:\\برنامج الارشيف\\اللوحات\\انشائي\\اسفل الدكة\\نموذج07\\حالة ثلاث عمارات متصلة\\قواعد مسلحة شريطية.pdf","go"]
[null,null,"التسليح الاضافي للقواعد المسلحة ","ACC-MD-B10-ST-07-04","D:\\برنامج الارشيف\\اللوحات\\انشائي\\اسفل الدكة\\نموذج07\\حالة ثلاث عمارات متصلة\\تسليح اضافي للقواعد الشريطية المسلحة.pdf","go"]
[null,null,"تفاصيل قواعد مسلحة","ACC-MD-B10-ST-07-05","D:\\برنامج الارشيف\\اللوحات\\انشائي\\اسفل الدكة\\نموذج07\\حالة ثلاث عمارات متصلة\\تفاصيل القواعد الشريطية المسلحة.pdf","go"]
[null,null,"محاور واعمدة","ACC-MD-B10-ST-07-06","D:\\برنامج الارشيف\\اللوحات\\انشائي\\اسفل الدكة\\نموذج07\\حالة ثلاث عمارات متصلة\\محاور واعمدة.pdf","go"]
[null,null,"جدول قطاعات الاعمدة والتسليح","ACC-MD-B10-ST-07-07","D:\\برنامج الارشيف\\اللوحات\\انشائي\\اسفل الدكة\\نموذج07\\حالة ثلاث عمارات متصلة\\جدول قطاعات الاعمدة ةالتسليح.pdf","go"]
[null,null,"ميد علوية ","ACC-MD-B10-ST-07-08","D:\\برنامج الارشيف\\اللوحات\\انشائي\\اسفل الدكة\\نموذج07\\حالة ثلاث عمارات متصلة\\ميد علوية .pdf","go"]
[null,null,"تفاصيل وقطاعات ميد علوية ","ACC-MD-B10-ST-07-09","D:\\برنامج الارشيف\\اللوحات\\انشائي\\اسفل الدكة\\نموذج07\\حالة ثلاث عمارات متصلة\\تفاصيل وقطاعات الميد العلوية.pdf",{"$f":"HYPERLINK((E68),\"go\")","v":"go"}]
[null,null,"مباني قصية الردم","ACC-MD-B10-ST-07-10","D:\\برنامج الارشيف\\اللوحات\\انشائي\\اسفل الدكة\\نموذج07\\حالة ثلاث عمارات متصلة\\مباني قصية الردم.pdf","go"]
[null,"عمارتين متصلتين","حدود الحفر للقواعد","ACC-MD-B10-ST-07-01","D:\\برنامج الارشيف\\اللوحات\\انشائي\\اسفل الدكة\\نموذج07\\حالة عمارتين متصلتين\\حدود الحفر للقواعد.pdf","go"]
[null,null,"قواعد عادية","ACC-MD-B10-ST-07-02","D:\\برنامج الارشيف\\اللوحات\\انشائي\\اسفل الدكة\\نموذج07\\حالة عمارتين متصلتين\\قواعد عادية.pdf","go"]
[null,null,"قواعد مسلحة","ACC-MD-B10-ST-07-03","D:\\برنامج الارشيف\\اللوحات\\انشائي\\اسفل الدكة\\نموذج07\\حالة عمارتين متصلتين\\قواعد مسلحة شريطية.pdf","go"]
[null,null,"التسليح الاضافي للقواعد المسلحة ","ACC-MD-B10-ST-07-04","D:\\برنامج الارشيف\\اللوحات\\انشائي\\اسفل الدكة\\نموذج07\\حالة عمارتين متصلتين\\تسليح اضافي للقواعد المسلحة.pdf","go"]
[null,null,"تفاصيل قواعد مسلحة","ACC-MD-B10-ST-07-05","D:\\برنامج الارشيف\\اللوحات\\انشائي\\اسفل الدكة\\نموذج07\\حالة عمارتين متصلتين\\تفاصيل القواعد المسلحة الشريطية.pdf","go"]
[null,null,"محاور واعمدة","ACC-MD-B10-ST-07-06","D:\\برنامج الارشيف\\اللوحات\\انشائي\\اسفل الدكة\\نموذج07\\حالة عمارتين متصلتين\\محاور واعمدة.pdf","go"]
[null,null,"جدول قطاعات الاعمدة والتسليح","ACC-MD-B10-ST-07-07","D:\\برنامج الارشيف\\اللوحات\\انشائي\\اسفل الدكة\\نموذج07\\حالة عمارتين متصلتين\\جدول قطاعات الاعمدة والتسليح.pdf","go"]
["08","ثلاث عمارات متصلة","حدود الحفر","ACC-MD-B10-ST-08-02","D:\\برنامج الارشيف\\اللوحات\\انشائي\\اسفل الدكة\\نموذج  08\\حالة ثلاث عمارات متصلة\\حدود الحفر .pdf","go"]
[null,null,"قواعد عادية","ACC-MD-B10-ST-08-02","D:\\برنامج الارشيف\\اللوحات\\انشائي\\اسفل الدكة\\نموذج  08\\حالة ثلاث عمارات متصلة\\قواعد عادية.pdf","go"]
[null,null,"قواعد مسلحة","ACC-MD-B10-ST-08-03","D:\\برنامج الارشيف\\اللوحات\\انشائي\\اسفل الدكة\\نموذج  08\\حالة ثلاث عمارات متصلة\\قواعد مسلحة.pdf","go"]
[null,null,"التسليح الاضافي للقواعد المسلحة ","ACC-MD-B10-ST-08-03","D:\\برنامج الارشيف\\اللوحات\\انشائي\\اسفل الدكة\\نموذج  08\\حالة ثلاث عمارات متصلة\\التسليح الاساسي للقواعد المسلحة.pdf","go"]
[null,null,"تفاصيل قواعد مسلحة","ACC-MD-B10-ST-08-05","D:\\برنامج الارشيف\\اللوحات\\انشائي\\اسفل الدكة\\نموذج  08\\حالة ثلاث عمارات متصلة\\تفاصيل قواعد مسلحة.pdf","go"]
[null,null,"محاور واعمدة","ACC-MD-B10-ST-08-06","D:\\برنامج الارشيف\\اللوحات\\انشائي\\اسفل الدكة\\نموذج  08\\حالة ثلاث عمارات متصلة\\محاور واعمدة.pdf","go"]
[null,null,"جدول قطاعات الاعمدة والتسليح","ACC-MD-B10-ST-08-07","D:\\برنامج الارشيف\\اللوحات\\انشائي\\اسفل الدكة\\نموذج  08\\حالة ثلاث عمارات متصلة\\جدول قطاعات الاعمدة والتسليح.pdf","go"]
[null,null,"تفاصيل تسليح الاعمدة","ACC-MD-B10-ST-08-08","D:\\برنامج الارشيف\\اللوحات\\انشائي\\اسفل الدكة\\نموذج  08\\حالة ثلاث عمارات متصلة\\تفاصيل تسليح الاعمدة.pdf","go"]
[null,null,"مباني قصية الردم ","ACC-MD-B10-ST-08-09","D:\\برنامج الارشيف\\اللوحات\\انشائي\\اسفل الدكة\\نموذج  08\\حالة ثلاث عمارات متصلة\\مباني قصية الردم.pdf","go"]
[null,null,"ميد علوية ","ACC-MD-B10-ST-08-10","D:\\برنامج الارشيف\\اللوحات\\انشائي\\اسفل الدكة\\نموذج  08\\حالة ثلاث عمارات متصلة\\ميد علوية.pdf","go"]
[null,null,"تفاصيل قطاعات الميد العلوية","ACC-MD-B10-ST-08-11","D:\\برنامج الارشيف\\اللوحات\\انشائي\\اسفل الدكة\\نموذج  08\\حالة ثلاث عمارات متصلة\\تفاصيل قطاعات الميد العلوية .pdf","go"]
[null,"عمارتين متصلتين","حدود الحفر للقواعد","ACC-MD-B10-ST-08-01","D:\\برنامج الارشيف\\اللوحات\\انشائي\\اسفل الدكة\\نموذج  08\\حالة عمارتين متصلتين\\حدود الحفر للقواعد.pdf","go"]
[null,null,"قواعد عادية","ACC-MD-B10-ST-08-02","D:\\برنامج الارشيف\\اللوحات\\انشائي\\اسفل الدكة\\نموذج  08\\حالة عمارتين متصلتين\\قواعد عادية.pdf","go"]
[null,null,"قواعد مسلحة شريطية","ACC-MD-B10-ST-08-03","D:\\برنامج الارشيف\\اللوحات\\انشائي\\اسفل الدكة\\نموذج  08\\حالة عمارتين متصلتين\\قواعد مسلحة شريطية.pdf","go"]
[null,null,"التسليح الاضافي للقواعد المسلحة ","ACC-MD-B10-ST-08-04","D:\\برنامج الارشيف\\اللوحات\\انشائي\\اسفل الدكة\\نموذج  08\\حالة عمارتين متصلتين\\تسليح اضافي قواعد مسلحة.pdf","go"]
[null,null,"تفاصيل قواعد مسلحة","ACC-MD-B10-ST-08-05","D:\\برنامج الارشيف\\اللوحات\\انشائي\\اسفل الدكة\\نموذج  08\\حالة عمارتين متصلتين\\تفاصيل قواعد مسلحة.pdf","go"]
[null,null,"محاور واعمدة","ACC-MD-B10-ST-08-06","D:\\برنامج الارشيف\\اللوحات\\انشائي\\اسفل الدكة\\نموذج  08\\حالة عمارتين متصلتين\\محاور واعمدة.pdf","go"]
[null,null,"جدول قطاعات الاعمدة والتسليح","ACC-MD-B10-ST-08-07","D:\\برنامج الارشيف\\اللوحات\\انشائي\\اسفل الدكة\\نموذج  08\\حالة عمارتين متصلتين\\جدول قطاعات الاعمدة والتسليح.pdf","go"]
[null,null,"تفاصيل تسليح الاعمدة","ACC-MD-B10-ST-08-08","D:\\برنامج الارشيف\\اللوحات\\انشائي\\اسفل الدكة\\نموذج  08\\حالة عمارتين متصلتين\\تفاصيل تسليح الاعمدة.pdf","go"]

{"sheet":"انشائي اعلى الدكه","index":6,"n_rows":0,"n_cols":0,"rows_kept":0,"cut":false,"hidden":false,"merged":[]}

{"sheet":"Sheet3","index":7,"n_rows":1,"n_cols":1,"rows_kept":1,"cut":false,"hidden":false,"merged":[]}
["انشائى اسفل الدكه'!_FilterDatabase"]